[Event "UK vs Ukraine Challenge Match 2023"]
[Site "London"]
[Date "2023.03.28"]
[Round "6.1"]
[White "Adams, Michael"]
[Black "Volokitin, Andrei"]
[Result "0-1"]
[ECO "C42"]
[WhiteElo "2687"]
[BlackElo "2665"]
[Annotator "TA"]
[PlyCount "70"]
[EventDate "2023.03.15"]
[EventType "match"]
[EventCountry "ENG"]
[SourceTitle "playchess.com"]
[Source "ChessBase"]
[SourceQuality "1"]
[TimeControl "40/6000+30:3000+30"]

{[%evp 10,70,11,2,16,8,13,0,4,7,11,0,4,0,0,0,0,0,0,-5,-6,-38,-38,-38,-35,-34,-38,-27,-43,-27,-36,-43,-27,-117,-81,-100,-106,-557,-537,-602,-612,-623,-615,-634,-630,-657,-619,-653,-671,-669,-668,-614,-645,-660,-552,-462,0,-690,-687,-679,-661,-730,-675]} 1. e4 {[%emt 0:00:04]} e5 {[%emt 0:00:06]} 2. Nf3 {[%emt 0:00:08]} Nf6 {[%emt 0:00:05]} 3. Nxe5 {[%emt 0:01:32]} d6 {[%emt 0:00:06]} 4. Nf3 {[%emt 0:00:05]} Nxe4 {[%emt 0:00:04]} 5. d3 {[%emt 0:00:30][%cal Bd2d3,Bd3d4,Bd4d5][%mdl 32]} Nf6 {[%emt 0:00:10]} 6. d4 {[%emt 0:00:06]} g6 {[%emt 0:00:07] C42: Petroff Defence: 3 Nxe5 and unusual White 3rd moves.} 7. Bd3 {[%emt 0:02:47]} Bg7 {[%emt 0:00:11]} 8. O-O {[%emt 0:02:50]} O-O {[%emt 0:00:07] The position is equal.} 9. c3 {[%emt 0:02:21]} Re8 {[%emt 0:28:04]} 10. a4 {[%emt 0:05:41]} c5 {[%emt 0:17:54] [#]} 11. d5 $146 {[%emt 0:13:14]} ({Predecessor:} 11. Na3 Nc6 12. dxc5 dxc5 13. Bb5 Bd7 14. Be3 a6 15. Be2 Qe7 16. Re1 Rad8 17. Qb3 {0-1 Jobava,B (2578)-Xiong,J (2690) Titled Tuesday intern op 20th Sep Late blitz 2022 (9)}) 11... Bg4 {[%emt 0:03:25]} (11... Nxd5 12. Bb5 Be6 13. Bxe8 Qxe8 14. Ng5 $16) 12. h3 {[%emt 0:09:00]} Bxf3 {[%emt 0:00:13]} 13. Qxf3 {[%emt 0:00:02]} Nbd7 {[%emt 0:00:29]} 14. Qd1 {[%emt 0:05:38]} Nxd5 {[%emt 0:20:09]} 15. Bxg6 {[%emt 0:06:58][%mdl 64] [#] Discovered Attack} hxg6 {[%emt 0:01:54]} 16. Qxd5 {[%emt 0:00:05]} Qb6 {[%emt 0:01:26]} 17. Rd1 {[%emt 0:14:42]} Re5 {[%emt 0:02:23]} (17... Qc6 {with more complications.} 18. Kf1 Re6 19. Bf4 Qa6+) 18. Qd3 {[%emt 0:01:20]} Rae8 {[%emt 0:00:55] Hoping for ...Re1+.} 19. Nd2 {[%emt 0:00:41]} Re1+ {[%emt 0:09:46]} 20. Nf1 {[%emt 0:00:06]} c4 {[%emt 0:15:48]} 21. Qd5 {[%emt 0:03:48] Black converts the advantage convincingly.} (21. Rxe1 $11 {remains equal.} Rxe1 22. Qd2) 21... R8e5 {[%emt 0:03:00] Black is much more active. The white rooks are badly placed.} ({Don't play} 21... R8e2 22. Be3 Rxd1 23. Rxd1 $14) 22. Qf3 {[%emt 0:03:27] [#] Strongly threatening Rxe1.} Rf5 $1 $36 {[%emt 0:00:19][%mdl 2048] Black is really pushing.} 23. Qxf5 {[%emt 0:01:22][%mdl 8192]} ({Reject} 23. Rxe1 Rxf3 24. gxf3 Ne5 $19) (23. Bf4 $17 {is a better chance.} Ne5 24. Qg3 Rxd1 25. Rxd1) 23... Rxf1+ $19 {[%emt 0:00:07]} ({And not} 23... gxf5 24. Rxe1 Ne5 25. Re2 $15) 24. Kxf1 {[%emt 0:03:08]} gxf5 {[%emt 0:00:04]} 25. a5 {[%emt 0:00:07]} Qc6 {[%emt 0:00:13]} 26. Be3 {[%emt 0:00:06]} Ne5 {[%emt 0:01:00]} 27. Bxa7 {[%emt 0:00:18]} Nd3 {[%emt 0:00:07]} 28. Rd2 {[%emt 0:00:06]} Bh6 {[%emt 0:00:36]} 29. Rc2 {[%emt 0:00:05]} Nf4 {[%emt 0:02:27]} 30. f3 {[%emt 0:00:10]} Qd5 {[%emt 0:00:28]} 31. Rf2 {[%emt 0:01:25]} Qd3+ {[%emt 0:00:28]} 32. Ke1 {[%emt 0:00:36]} Qd5 {[%emt 0:00:18]} (32... Bg7 $142 33. Rd1 Bxc3+ 34. bxc3 Qxc3+ 35. Kf1 Qxa5) 33. Kf1 $1 {[%emt 0:00:04]} Bg5 {[%emt 0:00:52] Threatens to win with ...Bh4. Black is clearly winning.} 34. Bd4 {[%emt 0:04:22]} Ne6 {[%emt 0:00:20]} 35. Bb6 {[%emt 0:03:22]} Bh4 {[%emt 0:00:38] Weighted Error Value: White=0.26 (precise) /Black=0.32} 0-1

[Event "UK vs Ukraine Challenge Match 2023"]
[Site "London"]
[Date "2023.03.29"]
[Round "7.1"]
[White "Volokitin, Andrei"]
[Black "Adams, Michael"]
[Result "1/2-1/2"]
[ECO "C54"]
[WhiteElo "2665"]
[BlackElo "2687"]
[Annotator "TA"]
[PlyCount "72"]
[EventDate "2023.03.15"]
[EventType "match"]
[EventCountry "ENG"]
[SourceTitle "playchess.com"]
[Source "ChessBase"]
[SourceQuality "1"]
[TimeControl "40/6000+30:3000+30"]

{[%evp 17,72,0,0,0,0,0,6,0,0,0,0,0,13,9,9,9,27,11,18,12,13,9,24,14,31,14,44,25,29,25,53,0,0,0,0,0,0,0,0,0,0,0,0,0,0,0,10,0,0,0,0,0,0,0,0,0,0]} 1. e4 {[%emt 0:00:04]} e5 {[%emt 0:00:05]} 2. Nf3 {[%emt 0:00:08]} Nc6 {[%emt 0:00:14]} 3. Bc4 {[%emt 0:00:15]} Bc5 {[%emt 0:00:07]} 4. c3 {[%emt 0:00:08]} Nf6 {[%emt 0:00:06]} 5. d4 {[%emt 0:00:06]} exd4 {[%emt 0:00:07]} 6. e5 {[%emt 0:00:04]} d5 {[%emt 0:00:21]} 7. Bb5 {[%emt 0:00:06]} Ne4 {[%emt 0:00:05]} 8. cxd4 {[%emt 0:00:04]} Bb6 {[%emt 0:00:06]} 9. Nc3 {[%emt 0:00:07]} O-O {[%emt 0:00:33]} 10. Be3 {[%emt 0:00:05] C54: Giuoco Piano: 4 c3 Nf6, main lines with 5 d4 and 5 d3.} Bg4 {[%emt 0:04:12]} 11. h3 {[%emt 0:00:10]} Bh5 {[%emt 0:00:21]} 12. Qc2 {[%emt 0:00:06]} Ba5 {[%emt 0:10:15]} 13. O-O {[%emt 0:00:54]} Bxf3 {[%emt 0:00:12]} 14. gxf3 {[%emt 0:00:04]} Ng5 {[%emt 0:00:08][%cal Oc6d4] [#] ...Nxd4! would be deadly.} 15. Kg2 {[%emt 0:12:20] Threatens to win with Bxc6.} Bxc3 {[%emt 0:00:08]} 16. bxc3 {[%emt 0:24:31] aiming for f4.} f5 {[%emt 0:00:18]} 17. f4 {[%emt 0:04:46]} Ne6 {[%emt 0:00:11]} 18. Qa4 {[%emt 0:01:19] [#]} Qd7 $146 {[%emt 0:10:26][%cal Og7g5]} ({Predecessor:} 18... Qh4 19. Bxc6 bxc6 20. Qxc6 Rae8 21. Qxd5 g5 22. f3 Kh8 23. Kh2 Rb8 24. Qxe6 Rb2+ {0-1 Pichot,A (2630)-So,W (2770) Carlsen Inv Prelim rapid 2021 (4)}) 19. Qd1 {[%emt 0:27:04]} a6 {[%emt 0:00:56]} 20. Be2 {[%emt 0:10:11]} Ne7 {[%emt 0:09:15]} 21. h4 {[%emt 0:00:39]} (21. Rh1 {is interesting.} Ng6 22. Kg3 c5 23. h4) 21... Rac8 {[%emt 0:02:27]} (21... c5 {seems wilder.} 22. a4 Ng6 23. Kg3 Rac8) 22. h5 {[%emt 0:01:49]} c5 {[%emt 0:02:39]} 23. dxc5 {[%emt 0:17:59]} Nxc5 {[%emt 0:16:32]} 24. c4 {[%emt 0:00:15]} ({White should play} 24. Bxc5 $14 Rxc5 25. Qb3) 24... Ne6 $11 {[%emt 0:04:43] The position is equal.} 25. cxd5 {[%emt 0:00:48]} Nxd5 {[%emt 0:01:04]} 26. Kg3 {[%emt 0:00:10]} Rfd8 {[%emt 0:07:23]} 27. Bf3 {[%emt 0:03:36]} g5 {[%emt 0:03:38][%cal Rg5f4]} 28. hxg6 {[%emt 0:02:04]} hxg6 {[%emt 0:04:25]} 29. Qxd5 {[%emt 0:00:47]} Qxd5 {[%emt 0:00:07]} 30. Bxd5 {[%emt 0:00:03]} Rxd5 {[%emt 0:00:03]} 31. Rfd1 {[%emt 0:00:07]} Rcd8 {[%emt 0:05:26]} 32. Rxd5 {[%emt 0:01:18]} Rxd5 {[%emt 0:00:02]} 33. a4 {[%emt 0:01:25]} Kf7 {[%emt 0:06:26]} 34. Kf3 {[%emt 0:00:06]} g5 {[%emt 0:02:28][%mdl 64] [#] Deflection} 35. fxg5 {[%emt 0:00:21]} Rxe5 {[%emt 0:00:05]} 36. Rh1 {[%emt 0:01:46]} f4 {[%emt 0:08:42] Weighted Error Value: White=0.05 (flawless) /Black=0.05 (flawless)} 1/2-1/2

[Event "UK vs Ukraine Challenge Match 2023"]
[Site "London"]
[Date "2023.03.30"]
[Round "8.1"]
[White "Adams, Michael"]
[Black "Volokitin, Andrei"]
[Result "1-0"]
[ECO "C42"]
[WhiteElo "2687"]
[BlackElo "2665"]
[Annotator "TA"]
[PlyCount "133"]
[EventDate "2023.03.15"]
[EventType "match"]
[EventCountry "ENG"]
[SourceTitle "playchess.com"]
[Source "ChessBase"]
[SourceQuality "1"]
[TimeControl "40/6000+30:3000+30"]

{[%evp 25,133,0,38,36,38,35,29,18,17,26,21,21,21,21,27,21,37,27,18,20,31,0,88,19,20,20,18,29,27,23,23,0,22,21,16,8,39,33,61,60,65,58,64,64,81,67,70,70,83,81,83,78,85,86,92,83,88,79,79,79,79,81,81,79,85,85,94,94,93,93,97,97,104,72,72,72,71,71,71,72,86,60,29954,29956,29957,29957,29955,29956,29958,29937,29961,29959,29967,29965,29969,29970,29977,29978,29978,29979,29979,29980,29980,29981,29983,29984,29984,29985,29988,-29979]} 1. e4 {[%emt 0:00:03]} e5 {[%emt 0:00:06]} 2. Nf3 {[%emt 0:00:04]} Nf6 {[%emt 0:00:04]} 3. Nxe5 {[%emt 0:00:07]} d6 {[%emt 0:00:04]} 4. Nf3 {[%emt 0:00:05]} Nxe4 {[%emt 0:00:04]} 5. d4 {[%emt 0:00:07]} d5 {[%emt 0:00:06]} 6. Bd3 {[%emt 0:00:03]} Bd6 {[%emt 0:00:08]} 7. O-O {[%emt 0:00:10]} O-O {[%emt 0:00:05]} 8. c4 {[%emt 0:00:19]} c6 {[%emt 0:00:04]} 9. cxd5 {[%emt 0:00:05]} cxd5 {[%emt 0:00:03]} 10. Nc3 {[%emt 0:00:07]} Nxc3 {[%emt 0:00:49]} 11. bxc3 {[%emt 0:00:02]} Bg4 {[%emt 0:00:11]} 12. h3 {[%emt 0:01:52]} Bh5 {[%emt 0:00:14]} 13. Rb1 {[%emt 0:00:05]} Nd7 {[%emt 0:00:04]} 14. Rxb7 {[%emt 0:03:56] C42: Petroff Defence: 3 Nxe5 and unusual White 3rd moves.} Nb6 {[%emt 0:02:27]} 15. Ba6 {[%emt 0:03:09]} Qe8 {[%emt 0:05:33]} 16. Bd2 {[%emt 0:16:40] White has an edge.} (16. g4 $5 {[%cal Rg4h5]} Bg6 17. Nh4 $11) 16... Qc6 {[%emt 0:10:22]} 17. Ne5 {[%emt 0:10:18][%mdl 64] Repels Nc4. Discovered Attack} Qxb7 {[%emt 0:05:13]} 18. Bxb7 {[%emt 0:00:08]} Bxd1 {[%emt 0:00:05][%cal Bh5d1,Bd1e2,Be2c4][%mdl 32]} 19. Bxa8 {[%emt 0:00:12]} Be2 {[%emt 0:39:26][%cal Oe2f1]} 20. Re1 {[%emt 0:01:02] Bxd5 is the strong threat.} Bc4 {[%emt 0:08:14]} 21. Bb7 {[%emt 0:15:47]} Rb8 {[%emt 0:02:40]} 22. Bc6 {[%emt 0:02:10] next Nxc4 is good for White.} Rc8 {[%emt 0:05:17] [#]} 23. Bd7 $146 {[%emt 0:14:01]} ({Predecessor:} 23. a4 Bxe5 24. Rxe5 h6 25. Be8 Bb3 26. Bb5 Bxa4 27. Bxa4 Nxa4 28. Rxd5 Nxc3 29. Bxc3 Rxc3 30. Rd8+ {½-½ Staniszewski,J (2464)-Hatzl,J (2496) W-ch33 sf06 email 2009}) 23... Rc7 {[%emt 0:14:03] [#]} (23... Nxd7 $11 24. Nxd7 f6) 24. Bf4 {[%emt 0:03:19]} g5 $11 {[%emt 0:06:50]} 25. Nxc4 {[%emt 0:04:11]} (25. Bxg5 $2 Bxe5 26. Bf5 Bd6 $19) 25... Bxf4 {[%emt 0:00:04]} 26. Nxb6 {[%emt 0:00:21]} axb6 {[%emt 0:00:01][%mdl 4096] Endgame KRB-KRB} 27. Ba4 {[%emt 0:03:59]} Rxc3 {[%emt 0:00:06]} 28. Re8+ {[%emt 0:00:56]} Kg7 {[%emt 0:00:02] ( -> ...Rc1+)} 29. g3 {[%emt 0:00:53]} Bd2 {[%emt 0:02:37]} 30. Rb8 {[%emt 0:01:33]} Rc4 {[%emt 0:08:48]} 31. Bb3 {[%emt 0:01:05]} Rc6 {[%emt 0:00:28]} 32. Rd8 {[%emt 0:04:03]} Rf6 {[%emt 0:00:24]} 33. Rxd5 {[%emt 0:00:15]} ({Much worse is} 33. Bxd5 Be1 $11) 33... h6 {[%emt 0:00:14]} 34. Kg2 {[%emt 0:06:01]} Be1 {[%emt 0:00:44]} 35. f3 {[%emt 0:00:08]} Re6 {[%emt 0:01:22]} 36. Rd7 {[%emt 0:08:17]} Rf6 {[%emt 0:00:02]} 37. Rc7 {[%emt 0:02:23]} Kf8 {[%emt 0:01:15]} 38. Rc1 {[%emt 0:03:39] White is more active.} Bd2 {[%emt 0:00:16]} 39. Rc8+ {[%emt 0:00:13]} Kg7 {[%emt 0:00:02]} 40. Kf2 {[%emt 0:00:00]} Rd6 {[%emt 0:00:00]} 41. Rc7 {[%emt 0:11:14]} Rxd4 {[%emt 0:07:04]} 42. Rxf7+ {[%emt 0:06:21]} Kg6 {[%emt 0:00:04]} 43. Re7 {[%emt 0:00:51]} Rd6 {[%emt 0:01:50]} 44. Re4 {[%emt 0:00:22]} Bc3 {[%emt 0:12:18]} 45. h4 {[%emt 0:02:07]} Kf5 {[%emt 0:03:24]} 46. h5 {[%emt 0:02:14]} Be5 {[%emt 0:00:52]} 47. Ra4 {[%emt 0:05:02]} Bd4+ {[%emt 0:02:55]} 48. Ke2 {[%emt 0:00:54]} Be5 {[%emt 0:00:56]} 49. Bc2+ {[%emt 0:08:33]} Kf6 {[%emt 0:00:30]} 50. f4 {[%emt 0:00:30]} Bc3 {[%emt 0:03:31]} 51. Kf3 {[%emt 0:01:49]} gxf4 {[%emt 0:18:02]} 52. gxf4 {[%emt 0:00:08]} Rd5 {[%emt 0:00:05]} 53. Rc4 {[%emt 0:04:54]} Rc5 $2 {[%emt 0:02:04][%mdl 8192] [#] Loses the game.} (53... Rxh5 $14 54. Rc6+ (54. Rxc3 $2 {perishes.} Rh3+ {[%mdl 64] Skewer} 55. Kg4 Rxc3 $19) 54... Ke7) 54. Rxc5 $1 {[%emt 0:03:38] White mates.} bxc5 {[%emt 0:00:01] KB-KB} 55. Bd3 {[%emt 0:00:14]} Bd2 {[%emt 0:04:16]} 56. Ke4 {[%emt 0:00:49]} Ba5 {[%emt 0:00:57]} 57. a4 {[%emt 0:03:27]} Bc7 {[%emt 0:00:15]} 58. f5 {[%emt 0:00:41]} Bd8 {[%emt 0:01:11]} 59. Kd5 {[%emt 0:01:51]} c4 {[%emt 0:00:26]} 60. Kxc4 {[%emt 0:03:51]} ({Less strong is} 60. Bxc4 Kxf5 61. Bd3+ Kf4 $14) 60... Kg5 {[%emt 0:00:32]} 61. Kb5 {[%emt 0:00:38]} Kxh5 {[%emt 0:00:23]} 62. a5 {[%emt 0:00:08]} Bxa5 {[%emt 0:00:39]} 63. Kxa5 {[%emt 0:00:04]} Kg5 {[%emt 0:00:07]} 64. Kb5 {[%emt 0:00:08]} h5 {[%emt 0:01:00]} 65. Kc5 {[%emt 0:01:02]} h4 {[%emt 0:00:21]} 66. Kd4 {[%emt 0:00:49]} h3 {[%emt 0:00:30]} 67. Ke4 $4 {[%emt 0:09:53][%mdl 40960] Weighted Error Value: White=0.05 (flawless) /Black=0.16 (very precise) . Sensor Board Error (Ke4/e5)?} (67. Ke5 {avoids the disaster.} Kh5 68. f6 Kh6 69. Be4 h2 70. Kf5 h1=B 71. Bxh1 Kh7 72. f7) 1-0